[Event "*** Titled Tuesday Blitz"]
[Site "Chess.com"]
[Date "2018.07.03"]
[Round "6"]
[White "GMKrikor"]
[Black "GMMatamoros"]
[Result "1-0"]
[WhiteElo "2620"]
[BlackElo "2514"]
[TimeControl "180+2"]
[EndTime "14:17:10 PDT"]
[Termination "GMKrikor won by resignation"]

1. d4 {[%clk 0:03:01.9]} 1... Nf6 {[%clk 0:02:56]} 2. c4 {[%clk 0:03:02]} 2...
g6 {[%clk 0:02:56.9]} 3. g3 {[%clk 0:02:57.7]} 3... Bg7 {[%clk 0:02:57.2]} 4.
Bg2 {[%clk 0:02:59.1]} 4... O-O {[%clk 0:02:58.1]} 5. Nf3 {[%clk 0:02:56.1]}
5... d6 {[%clk 0:02:58.7]} 6. O-O {[%clk 0:02:51.5]} 6... Nbd7 {[%clk
0:02:59.5]} 7. Nc3 {[%clk 0:02:51.8]} 7... e5 {[%clk 0:03:00.2]} 8. e4 {[%clk
0:02:53]} 8... a6 {[%clk 0:03:01]} 9. h3 {[%clk 0:02:48.4]} 9... b5 {[%clk
0:03:00.7]} 10. dxe5 {[%clk 0:01:38.4]} 10... dxe5 {[%clk 0:02:59.1]} 11. a3
{[%clk 0:01:30.1]} 11... Bb7 {[%clk 0:02:45.3]} 12. Qe2 {[%clk 0:01:26.2]} 12...
c6 {[%clk 0:02:15.2]} 13. Rd1 {[%clk 0:01:24.8]} 13... Qe7 {[%clk 0:02:14.6]}
14. Be3 {[%clk 0:01:25.2]} 14... Nc5 {[%clk 0:02:01.3]} 15. Nd2 {[%clk
0:01:26.2]} 15... Ne6 {[%clk 0:02:00]} 16. Nb3 {[%clk 0:01:24]} 16... Rad8
{[%clk 0:01:24.4]} 17. Rac1 {[%clk 0:01:12.7]} 17... h5 {[%clk 0:01:03.1]} 18.
Rxd8 {[%clk 0:00:36.8]} 18... Rxd8 {[%clk 0:01:00.8]} 19. Rd1 {[%clk 0:00:38.7]}
19... h4 {[%clk 0:00:50.9]} 20. Rxd8+ {[%clk 0:00:21]} 20... Qxd8 {[%clk
0:00:51.1]} 21. g4 {[%clk 0:00:18.9]} 21... Nh7 {[%clk 0:00:29.7]} 22. Qd2
{[%clk 0:00:16.4]} 22... Bf6 {[%clk 0:00:26.8]} 23. Qxd8+ {[%clk 0:00:14.2]}
23... Bxd8 {[%clk 0:00:27.5]} 24. Nc5 {[%clk 0:00:13.5]} 24... Nxc5 {[%clk
0:00:24.1]} 25. Bxc5 {[%clk 0:00:15.4]} 25... Ng5 {[%clk 0:00:20.2]} 26. Kf1
{[%clk 0:00:08.4]} 26... Ne6 {[%clk 0:00:19.9]} 27. Bd6 {[%clk 0:00:09.3]} 27...
f6 {[%clk 0:00:20.8]} 28. Ke1 {[%clk 0:00:07.2]} 28... Bb6 {[%clk 0:00:19]} 29.
Bf1 {[%clk 0:00:06.7]} 29... Bd4 {[%clk 0:00:18.7]} 30. Nd1 {[%clk 0:00:04.3]}
30... Kf7 {[%clk 0:00:17.9]} 31. b4 {[%clk 0:00:03.2]} 31... Bc8 {[%clk
0:00:09.6]} 32. c5 {[%clk 0:00:04.3]} 32... Ng5 {[%clk 0:00:10.2]} 33. Bg2
{[%clk 0:00:04.5]} 33... Be6 {[%clk 0:00:11.1]} 34. Kd2 {[%clk 0:00:05.1]} 34...
Bc4 {[%clk 0:00:10.9]} 35. Ne3 {[%clk 0:00:06.4]} 35... Bb3 {[%clk 0:00:07.4]}
36. f3 {[%clk 0:00:07.1]} 36... Ne6 {[%clk 0:00:07.9]} 37. Bf1 {[%clk
0:00:07.6]} 37... Nf4 {[%clk 0:00:08.6]} 38. Nc2 {[%clk 0:00:08.7]} 38... Be6
{[%clk 0:00:08.6]} 39. Nxd4 {[%clk 0:00:09.6]} 39... exd4 {[%clk 0:00:09.4]} 40.
Bxf4 {[%clk 0:00:10.8]} 1-0

[Event "*** Titled Tuesday Blitz"]
[Site "Chess.com"]
[Date "2018.07.03"]
[Round "6"]
[White "Polish_fighter3000"]
[Black "eljanov"]
[Result "0-1"]
[WhiteElo "2746"]
[BlackElo "2655"]
[TimeControl "180+2"]
[EndTime "14:17:17 PDT"]
[Termination "eljanov won by resignation"]

1. d4 {[%clk 0:03:01.9]} 1... d5 {[%clk 0:02:58.8]} 2. Bf4 {[%clk 0:03:01.8]}
2... c5 {[%clk 0:02:57.7]} 3. e3 {[%clk 0:03:02.9]} 3... Nc6 {[%clk 0:02:57.5]}
4. c3 {[%clk 0:03:03.7]} 4... Nf6 {[%clk 0:02:57.6]} 5. Nd2 {[%clk 0:03:04.3]}
5... Bf5 {[%clk 0:02:56.5]} 6. Qb3 {[%clk 0:02:29.7]} 6... Qd7 {[%clk
0:02:56.9]} 7. dxc5 {[%clk 0:02:30.5]} 7... e5 {[%clk 0:02:55.2]} 8. Bg5 {[%clk
0:02:31.4]} 8... Bxc5 {[%clk 0:02:51.6]} 9. Bxf6 {[%clk 0:02:32.3]} 9... gxf6
{[%clk 0:02:52.5]} 10. Ngf3 {[%clk 0:02:33.8]} 10... O-O-O {[%clk 0:02:47.4]}
11. Qa4 {[%clk 0:02:29.6]} 11... Kb8 {[%clk 0:02:31]} 12. Nb3 {[%clk 0:02:13.7]}
12... Bb6 {[%clk 0:02:01.1]} 13. O-O-O {[%clk 0:01:50.6]} 13... Rhg8 {[%clk
0:01:49.8]} 14. h3 {[%clk 0:01:51]} 14... Qc7 {[%clk 0:01:31.8]} 15. Nh4 {[%clk
0:01:44.5]} 15... Be6 {[%clk 0:01:10]} 16. Kb1 {[%clk 0:01:43.6]} 16... f5
{[%clk 0:00:56.2]} 17. g3 {[%clk 0:01:39.7]} 17... f4 {[%clk 0:00:53.6]} 18.
gxf4 {[%clk 0:01:35.1]} 18... exf4 {[%clk 0:00:54.6]} 19. Ng2 {[%clk 0:01:19]}
19... Bf5+ {[%clk 0:00:46.7]} 20. Bd3 {[%clk 0:00:27.6]} 20... Bxd3+ {[%clk
0:00:45.7]} 21. Rxd3 {[%clk 0:00:29.5]} 21... Rxg2 {[%clk 0:00:46.9]} 22. exf4
{[%clk 0:00:31]} 22... Rxf2 {[%clk 0:00:46.5]} 23. Nc1 {[%clk 0:00:25]} 23...
Qxf4 {[%clk 0:00:44.9]} 24. Qxf4+ {[%clk 0:00:25.6]} 24... Rxf4 {[%clk
0:00:45.6]} 25. Rhd1 {[%clk 0:00:27.5]} 25... d4 {[%clk 0:00:44.5]} 26. Ne2
{[%clk 0:00:25.2]} 26... Re4 {[%clk 0:00:45.4]} 27. Ng3 {[%clk 0:00:25.8]} 27...
Re3 {[%clk 0:00:46.4]} 28. cxd4 {[%clk 0:00:26.7]} 28... Rxd3 {[%clk 0:00:45.8]}
29. Rxd3 {[%clk 0:00:28.6]} 29... Rxd4 {[%clk 0:00:46.3]} 30. Rf3 {[%clk
0:00:29.6]} 30... Bc7 {[%clk 0:00:38.7]} 31. Ne2 {[%clk 0:00:21.7]} 31... Rd2
{[%clk 0:00:32.1]} 32. Nc3 {[%clk 0:00:22.6]} 32... Ne5 {[%clk 0:00:29.7]} 33.
Rf5 {[%clk 0:00:23.7]} 33... a6 {[%clk 0:00:28.8]} 34. Ne4 {[%clk 0:00:22.3]}
34... Re2 {[%clk 0:00:27.9]} 35. Nc5 {[%clk 0:00:23.2]} 35... Bd6 {[%clk
0:00:24.7]} 36. Na4 {[%clk 0:00:21.7]} 36... Kc7 {[%clk 0:00:20.5]} 37. Rh5
{[%clk 0:00:21.9]} 37... Kd7 {[%clk 0:00:20.4]} 38. Rxh7 {[%clk 0:00:22.6]}
38... b5 {[%clk 0:00:21.4]} 39. Nc3 {[%clk 0:00:23.5]} 39... Rh2 {[%clk
0:00:22.4]} 40. a4 {[%clk 0:00:20.5]} 40... b4 {[%clk 0:00:22.8]} 41. Nd5 {[%clk
0:00:21.2]} 41... b3 {[%clk 0:00:23.2]} 42. Kc1 {[%clk 0:00:22.1]} 42... Nc4
{[%clk 0:00:22.7]} 43. Kd1 {[%clk 0:00:21.6]} 43... Nxb2+ {[%clk 0:00:22.6]} 44.
Ke1 {[%clk 0:00:22.4]} 44... Nd3+ {[%clk 0:00:23.8]} 45. Kf1 {[%clk 0:00:23.9]}
45... b2 {[%clk 0:00:24.6]} 46. Nc3 {[%clk 0:00:24.6]} 46... Rc2 {[%clk
0:00:24]} 0-1

[Event "*** Titled Tuesday Blitz"]
[Site "Chess.com"]
[Date "2018.07.03"]
[Round "6"]
[White "Genghis_K"]
[Black "Dr-Bassem"]
[Result "0-1"]
[WhiteElo "2705"]
[BlackElo "2717"]
[TimeControl "180+2"]
[EndTime "14:17:20 PDT"]
[Termination "Dr-Bassem won by resignation"]

1. e4 {[%clk 0:02:56.4]} 1... e5 {[%clk 0:03:00.6]} 2. Nf3 {[%clk 0:02:57.7]}
2... Nc6 {[%clk 0:03:02.2]} 3. Nc3 {[%clk 0:02:56.3]} 3... Nf6 {[%clk
0:03:02.9]} 4. Bb5 {[%clk 0:02:57.5]} 4... Bb4 {[%clk 0:03:02.6]} 5. O-O {[%clk
0:02:56.9]} 5... O-O {[%clk 0:03:03.4]} 6. d3 {[%clk 0:02:57.8]} 6... Bxc3
{[%clk 0:03:03.4]} 7. bxc3 {[%clk 0:02:58.1]} 7... d6 {[%clk 0:03:04.9]} 8. Nd2
{[%clk 0:02:59]} 8... Bg4 {[%clk 0:02:23.5]} 9. f3 {[%clk 0:02:56]} 9... Bd7
{[%clk 0:02:25.1]} 10. f4 {[%clk 0:02:55.5]} 10... exf4 {[%clk 0:02:26.1]} 11.
Rxf4 {[%clk 0:02:56.1]} 11... Ne5 {[%clk 0:02:26.5]} 12. Bxd7 {[%clk 0:02:57.2]}
12... Nfxd7 {[%clk 0:02:25.4]} 13. c4 {[%clk 0:02:55.8]} 13... Ng6 {[%clk
0:02:17.9]} 14. Rf2 {[%clk 0:02:53.2]} 14... Nde5 {[%clk 0:02:15.8]} 15. Nf1
{[%clk 0:02:50.2]} 15... Qh4 {[%clk 0:02:12.3]} 16. Ne3 {[%clk 0:02:49.2]} 16...
Ne7 {[%clk 0:02:04.5]} 17. Bb2 {[%clk 0:02:44]} 17... f6 {[%clk 0:02:00.3]} 18.
Qd2 {[%clk 0:02:35.2]} 18... Ng4 {[%clk 0:01:42.1]} 19. Nxg4 {[%clk 0:02:28.3]}
19... Qxg4 {[%clk 0:01:44]} 20. Raf1 {[%clk 0:02:29.4]} 20... c6 {[%clk
0:01:37.8]} 21. Rf3 {[%clk 0:02:22.3]} 21... Qe6 {[%clk 0:01:37.7]} 22. h4
{[%clk 0:02:17.7]} 22... Rf7 {[%clk 0:01:27.4]} 23. h5 {[%clk 0:02:18.3]} 23...
h6 {[%clk 0:01:16]} 24. Qf4 {[%clk 0:02:14.5]} 24... Raf8 {[%clk 0:01:06.9]} 25.
Rg3 {[%clk 0:02:10.3]} 25... Kh7 {[%clk 0:01:03.8]} 26. Ba3 {[%clk 0:02:10.4]}
26... c5 {[%clk 0:00:58]} 27. Bb2 {[%clk 0:02:09.6]} 27... Nc6 {[%clk
0:00:49.4]} 28. Bc3 {[%clk 0:02:04.7]} 28... Ne5 {[%clk 0:00:50]} 29. a4 {[%clk
0:01:59.8]} 29... f5 {[%clk 0:00:50]} 30. exf5 {[%clk 0:01:59.1]} 30... Rxf5
{[%clk 0:00:48.5]} 31. Qe4 {[%clk 0:02:00.7]} 31... Rf7 {[%clk 0:00:32.5]} 32.
a5 {[%clk 0:01:07.8]} 32... Kg8 {[%clk 0:00:23.2]} 33. Rxf5 {[%clk 0:01:08]}
33... Qxf5 {[%clk 0:00:22.7]} 34. Qxf5 {[%clk 0:01:04]} 34... Rxf5 {[%clk
0:00:24.6]} 35. Rh3 {[%clk 0:00:47.7]} 35... Ng4 {[%clk 0:00:20.2]} 36. Rg3
{[%clk 0:00:42.8]} 36... Nf6 {[%clk 0:00:19.2]} 37. Re3 {[%clk 0:00:34.6]} 37...
Kf7 {[%clk 0:00:19.2]} 38. Re1 {[%clk 0:00:35.2]} 38... Rxh5 {[%clk 0:00:18.5]}
39. Rb1 {[%clk 0:00:36.4]} 39... b6 {[%clk 0:00:16.8]} 40. Rxb6 {[%clk
0:00:19.2]} 40... axb6 {[%clk 0:00:18.7]} 41. a6 {[%clk 0:00:20.7]} 41... Ne8
{[%clk 0:00:18.7]} 0-1

[Event "*** Titled Tuesday Blitz"]
[Site "Chess.com"]
[Date "2018.07.03"]
[Round "6"]
[White "SergeiAza"]
[Black "RiskyDecision"]
[Result "1-0"]
[WhiteElo "2682"]
[BlackElo "2495"]
[TimeControl "180+2"]
[EndTime "14:17:22 PDT"]
[Termination "SergeiAza won by checkmate"]

1. e4 {[%clk 0:03:01.9]} 1... e6 {[%clk 0:02:58.9]} 2. d4 {[%clk 0:03:02.3]}
2... d5 {[%clk 0:02:59.6]} 3. Nd2 {[%clk 0:03:03.9]} 3... dxe4 {[%clk
0:03:00.9]} 4. Nxe4 {[%clk 0:03:04.4]} 4... Nd7 {[%clk 0:03:02.4]} 5. Nf3 {[%clk
0:03:04.5]} 5... Ngf6 {[%clk 0:03:03]} 6. Nxf6+ {[%clk 0:03:05.1]} 6... Nxf6
{[%clk 0:03:03.8]} 7. Bd3 {[%clk 0:03:06.5]} 7... c5 {[%clk 0:03:04.3]} 8. O-O
{[%clk 0:03:08]} 8... cxd4 {[%clk 0:03:05]} 9. Nxd4 {[%clk 0:03:09.3]} 9... Bc5
{[%clk 0:03:05.4]} 10. Be3 {[%clk 0:03:10.5]} 10... Bb6 {[%clk 0:02:48.3]} 11.
Qe1 {[%clk 0:03:02.5]} 11... Bxd4 {[%clk 0:02:45.2]} 12. Bb5+ {[%clk 0:03:02.8]}
12... Bd7 {[%clk 0:02:15.3]} 13. Bxd7+ {[%clk 0:03:02.9]} 13... Qxd7 {[%clk
0:02:16.7]} 14. Rd1 {[%clk 0:03:04.3]} 14... O-O {[%clk 0:02:00]} 15. Bxd4
{[%clk 0:03:05.2]} 15... Qc6 {[%clk 0:01:57.8]} 16. Bxf6 {[%clk 0:02:59.5]}
16... gxf6 {[%clk 0:01:58.8]} 17. c3 {[%clk 0:02:34.2]} 17... Rfd8 {[%clk
0:01:56.4]} 18. Qe3 {[%clk 0:02:34.8]} 18... Qa4 {[%clk 0:01:47]} 19. Qf3 {[%clk
0:02:23]} 19... Qxa2 {[%clk 0:01:27.5]} 20. Qxf6 {[%clk 0:02:12.2]} 20... Rd5
{[%clk 0:01:18.6]} 21. h4 {[%clk 0:02:05.1]} 21... Rad8 {[%clk 0:01:13.7]} 22.
Qxd8+ {[%clk 0:02:01.1]} 22... Rxd8 {[%clk 0:01:14.1]} 23. Rxd8+ {[%clk
0:02:02.7]} 23... Kg7 {[%clk 0:01:15.5]} 24. Rd2 {[%clk 0:02:00.9]} 24... a5
{[%clk 0:01:11.2]} 25. Rfd1 {[%clk 0:02:00.2]} 25... a4 {[%clk 0:01:10.6]} 26.
g3 {[%clk 0:01:54.6]} 26... Qb3 {[%clk 0:01:10.9]} 27. Re1 {[%clk 0:01:48.3]}
27... b5 {[%clk 0:01:08.3]} 28. Re3 {[%clk 0:01:44.8]} 28... b4 {[%clk 0:01:06]}
29. cxb4 {[%clk 0:01:42]} 29... Qxb4 {[%clk 0:01:07.3]} 30. Rc2 {[%clk
0:01:38.3]} 30... Qd4 {[%clk 0:01:04]} 31. Rcc3 {[%clk 0:01:32.2]} 31... Qd1+
{[%clk 0:01:01.6]} 32. Kg2 {[%clk 0:01:33.1]} 32... Qd2 {[%clk 0:00:57.7]} 33.
Ra3 {[%clk 0:01:25.9]} 33... Qd4 {[%clk 0:00:50.6]} 34. b3 {[%clk 0:01:14.5]}
34... axb3 {[%clk 0:00:43.8]} 35. Raxb3 {[%clk 0:01:13.4]} 35... Qd5+ {[%clk
0:00:44.8]} 36. Kg1 {[%clk 0:01:13.5]} 36... Qd1+ {[%clk 0:00:45.2]} 37. Kh2
{[%clk 0:01:13.5]} 37... Qd4 {[%clk 0:00:43.5]} 38. Rbd3 {[%clk 0:01:10.8]}
38... Qb2 {[%clk 0:00:40.2]} 39. Rf3 {[%clk 0:01:10.5]} 39... Qb7 {[%clk
0:00:40]} 40. Rf4 {[%clk 0:01:09.3]} 40... e5 {[%clk 0:00:35.8]} 41. Rf5 {[%clk
0:01:02.2]} 41... e4 {[%clk 0:00:34.1]} 42. Rd6 {[%clk 0:00:58.1]} 42... e3
{[%clk 0:00:22.9]} 43. fxe3 {[%clk 0:00:56.2]} 43... Qb2+ {[%clk 0:00:13.3]} 44.
Kh3 {[%clk 0:00:57]} 44... Qe2 {[%clk 0:00:11.7]} 45. Rdf6 {[%clk 0:00:55.9]}
45... Qxe3 {[%clk 0:00:12.4]} 46. Rxf7+ {[%clk 0:00:57]} 46... Kg8 {[%clk
0:00:13.1]} 47. Rf8+ {[%clk 0:00:56]} 47... Kg7 {[%clk 0:00:14.3]} 48. R5f7+
{[%clk 0:00:57.3]} 48... Kh6 {[%clk 0:00:13.7]} 49. Rf2 {[%clk 0:00:54.7]} 49...
Qe6+ {[%clk 0:00:13.3]} 50. Kh2 {[%clk 0:00:55.2]} 50... Kg7 {[%clk 0:00:13.2]}
51. R8f5 {[%clk 0:00:54.8]} 51... Qc4 {[%clk 0:00:11.1]} 52. Rg5+ {[%clk
0:00:53]} 52... Kh6 {[%clk 0:00:10]} 53. Rf6# {[%clk 0:00:53.7]} 1-0

[Event "*** Titled Tuesday Blitz"]
[Site "Chess.com"]
[Date "2018.07.03"]
[Round "6"]
[White "Bryakin_Mikhail"]
[Black "Alopekos"]
[Result "0-1"]
[WhiteElo "2598"]
[BlackElo "2433"]
[TimeControl "180+2"]
[EndTime "14:17:28 PDT"]
[Termination "Alopekos won by resignation"]

1. d4 {[%clk 0:03:01.9]} 1... Nf6 {[%clk 0:03:00.8]} 2. c4 {[%clk 0:03:03.3]}
2... e6 {[%clk 0:03:01.9]} 3. g3 {[%clk 0:03:04.6]} 3... d5 {[%clk 0:03:03.2]}
4. Bg2 {[%clk 0:03:05.5]} 4... Be7 {[%clk 0:03:04.7]} 5. Nf3 {[%clk 0:03:06.9]}
5... O-O {[%clk 0:03:06]} 6. O-O {[%clk 0:03:08.3]} 6... dxc4 {[%clk 0:03:07.2]}
7. Qc2 {[%clk 0:03:09.8]} 7... b5 {[%clk 0:03:06.5]} 8. Ne5 {[%clk 0:03:08.5]}
8... Qxd4 {[%clk 0:03:06.6]} 9. Bxa8 {[%clk 0:03:09.2]} 9... Qxe5 {[%clk
0:03:07.3]} 10. Bf3 {[%clk 0:03:04.2]} 10... Na6 {[%clk 0:02:20.8]} 11. Bf4
{[%clk 0:03:01.7]} 11... Qc5 {[%clk 0:02:05.7]} 12. Nc3 {[%clk 0:03:00.9]} 12...
Nb4 {[%clk 0:02:00.3]} 13. Qc1 {[%clk 0:03:01.3]} 13... Nbd5 {[%clk 0:01:54.9]}
14. Be5 {[%clk 0:02:56.7]} 14... Nd7 {[%clk 0:01:28.8]} 15. Nxd5 {[%clk
0:02:46.6]} 15... exd5 {[%clk 0:01:24.6]} 16. Bf4 {[%clk 0:02:34.5]} 16... d4
{[%clk 0:01:07.9]} 17. Qc2 {[%clk 0:02:31.8]} 17... Nf6 {[%clk 0:00:58.7]} 18.
Rad1 {[%clk 0:02:24.5]} 18... Bf5 {[%clk 0:00:53.4]} 19. Qc1 {[%clk 0:02:25.7]}
19... Rd8 {[%clk 0:00:52.8]} 20. a3 {[%clk 0:02:06.8]} 20... a5 {[%clk
0:00:51.4]} 21. Rfe1 {[%clk 0:02:02.9]} 21... Be4 {[%clk 0:00:28.1]} 22. Bg2
{[%clk 0:01:37.7]} 22... Bxg2 {[%clk 0:00:24.2]} 23. Kxg2 {[%clk 0:01:39.6]}
23... h6 {[%clk 0:00:16.6]} 24. h4 {[%clk 0:01:36.2]} 24... b4 {[%clk
0:00:17.1]} 25. axb4 {[%clk 0:01:34.7]} 25... axb4 {[%clk 0:00:19]} 26. Qc2
{[%clk 0:01:29.2]} 26... b3 {[%clk 0:00:11.8]} 27. Qc1 {[%clk 0:01:29.6]} 27...
c3 {[%clk 0:00:10.9]} 28. Rd3 {[%clk 0:01:30.9]} 28... Nd5 {[%clk 0:00:08.9]}
29. Red1 {[%clk 0:01:22.3]} 29... Nb4 {[%clk 0:00:03.3]} 30. Rf3 {[%clk
0:01:15.9]} 30... c2 {[%clk 0:00:03.5]} 31. Rf1 {[%clk 0:01:12.7]} 31... Na2
{[%clk 0:00:04.7]} 32. Qd2 {[%clk 0:01:11.5]} 32... Bd6 {[%clk 0:00:05.1]} 33.
Bxd6 {[%clk 0:00:48.8]} 33... Rxd6 {[%clk 0:00:07]} 34. Rxb3 {[%clk 0:00:48.9]}
34... Qd5+ {[%clk 0:00:05.7]} 35. Rf3 {[%clk 0:00:48.5]} 35... Rc6 {[%clk
0:00:06.9]} 36. e4 {[%clk 0:00:36.3]} 36... Qxe4 {[%clk 0:00:06.4]} 37. Re1
{[%clk 0:00:37.8]} 37... c1=Q {[%clk 0:00:03.5]} 38. Qxc1 {[%clk 0:00:38.3]}
38... Qxf3+ {[%clk 0:00:03.7]} 39. Kxf3 {[%clk 0:00:39.8]} 39... Nxc1 {[%clk
0:00:04.9]} 40. Re8+ {[%clk 0:00:41.7]} 40... Kh7 {[%clk 0:00:05.7]} 41. Re7
{[%clk 0:00:42.8]} 41... Kg6 {[%clk 0:00:05.8]} 42. Rd7 {[%clk 0:00:41.5]} 42...
Nb3 {[%clk 0:00:05.9]} 43. g4 {[%clk 0:00:39.6]} 43... Kf6 {[%clk 0:00:07]} 44.
Ke4 {[%clk 0:00:39.9]} 44... Ke6 {[%clk 0:00:07.1]} 45. Rd8 {[%clk 0:00:40.6]}
45... Rd6 {[%clk 0:00:07.9]} 46. Re8+ {[%clk 0:00:42]} 46... Kd7 {[%clk
0:00:09.1]} 47. Ra8 {[%clk 0:00:41.5]} 47... d3 {[%clk 0:00:09.7]} 48. Ra1
{[%clk 0:00:43]} 48... d2 {[%clk 0:00:10]} 49. Rd1 {[%clk 0:00:44.9]} 49... Rc6
{[%clk 0:00:10.5]} 50. Kf3 {[%clk 0:00:44.9]} 50... Rc1 {[%clk 0:00:10.4]} 51.
Ke2 {[%clk 0:00:46.5]} 51... Rxd1 {[%clk 0:00:11.4]} 52. Kxd1 {[%clk 0:00:46.8]}
52... Ke6 {[%clk 0:00:13]} 0-1

[Event "*** Titled Tuesday Blitz"]
[Site "Chess.com"]
[Date "2018.07.03"]
[Round "6"]
[White "andrzej"]
[Black "ama18"]
[Result "1-0"]
[WhiteElo "2213"]
[BlackElo "2265"]
[TimeControl "180+2"]
[EndTime "14:17:51 PDT"]
[Termination "andrzej won by resignation"]

1. e4 {[%clk 0:03:01.9]} 1... e6 {[%clk 0:03:00.1]} 2. d4 {[%clk 0:03:02]} 2...
d5 {[%clk 0:02:59.9]} 3. Nc3 {[%clk 0:03:03.5]} 3... Nf6 {[%clk 0:02:58.4]} 4.
e5 {[%clk 0:03:04.3]} 4... Nfd7 {[%clk 0:02:59]} 5. f4 {[%clk 0:03:05.7]} 5...
c5 {[%clk 0:03:00.4]} 6. Nf3 {[%clk 0:03:07.1]} 6... Nc6 {[%clk 0:03:01.9]} 7.
Be3 {[%clk 0:03:08.4]} 7... a6 {[%clk 0:03:01.9]} 8. Qd2 {[%clk 0:03:07.4]} 8...
b5 {[%clk 0:03:02.6]} 9. dxc5 {[%clk 0:03:07.4]} 9... Bxc5 {[%clk 0:03:04.4]}
10. Bd3 {[%clk 0:03:08.3]} 10... Qb6 {[%clk 0:03:03.3]} 11. Bf2 {[%clk
0:03:08.9]} 11... Bb7 {[%clk 0:02:57.7]} 12. O-O {[%clk 0:03:08.9]} 12... Bxf2+
{[%clk 0:02:43.7]} 13. Rxf2 {[%clk 0:03:09.5]} 13... Nc5 {[%clk 0:02:45.6]} 14.
Qe3 {[%clk 0:02:59.8]} 14... Rd8 {[%clk 0:02:28.7]} 15. Ne2 {[%clk 0:02:46.7]}
15... d4 {[%clk 0:02:20.1]} 16. Qd2 {[%clk 0:02:30.3]} 16... Nxd3 {[%clk
0:02:05.1]} 17. cxd3 {[%clk 0:02:30.7]} 17... Ne7 {[%clk 0:02:05.5]} 18. Ng3
{[%clk 0:02:28.9]} 18... Bxf3 {[%clk 0:01:57.5]} 19. Rxf3 {[%clk 0:02:28.8]}
19... O-O {[%clk 0:01:39.8]} 20. Ne4 {[%clk 0:02:24]} 20... Nf5 {[%clk
0:01:36.7]} 21. Qe2 {[%clk 0:02:09.3]} 21... Rc8 {[%clk 0:01:35.5]} 22. Rh3
{[%clk 0:02:09.1]} 22... h6 {[%clk 0:01:14.9]} 23. Qg4 {[%clk 0:01:59.2]} 23...
Ne3 {[%clk 0:01:05.3]} 24. Qh5 {[%clk 0:01:21.6]} 24... Rc2 {[%clk 0:00:44.9]}
25. Rg3 {[%clk 0:00:48.8]} 25... Rfc8 {[%clk 0:00:14.6]} 26. Qxh6 {[%clk
0:00:15.8]} 26... Rxg2+ {[%clk 0:00:12.6]} 27. Rxg2 {[%clk 0:00:13.4]} 27...
Nxg2 {[%clk 0:00:14.3]} 28. Qg5 {[%clk 0:00:10.9]} 28... Nxf4 {[%clk 0:00:07.9]}
29. Qxf4 {[%clk 0:00:10.7]} 29... Rc2 {[%clk 0:00:07.6]} 30. Rf1 {[%clk
0:00:11.6]} 30... Qc7 {[%clk 0:00:07]} 31. h4 {[%clk 0:00:09.3]} 31... Rxb2
{[%clk 0:00:07.5]} 32. h5 {[%clk 0:00:06.2]} 32... Qc2 {[%clk 0:00:05.9]} 33.
Qxf7+ {[%clk 0:00:06.2]} 33... Kh7 {[%clk 0:00:06.6]} 34. Qg6+ {[%clk
0:00:06.9]} 34... Kg8 {[%clk 0:00:07]} 35. Qe8+ {[%clk 0:00:07.5]} 35... Kh7
{[%clk 0:00:07.5]} 36. Qg6+ {[%clk 0:00:06.4]} 36... Kg8 {[%clk 0:00:08.2]} 37.
Qxe6+ {[%clk 0:00:07.3]} 37... Kh7 {[%clk 0:00:07.3]} 38. Ng5+ {[%clk
0:00:08.3]} 1-0